bitfinex/quotes_BTCUSD_20240902
["timestamp","ask_amount","ask_price","bid_price","bid_amount"]
[1725243636372,0.172891,57840.0,57838.0,0.16085451]
[1725243636606,0.0181233,57850.0,57839.0,0.0996]
[1725243636839,0.3638463,57850.0,57839.0,0.0996]
[1725243637037,0.3638463,57850.0,57840.0,0.00683875]
[1725243637038,0.172884,57843.0,57840.0,0.00683875]
[1725243637303,0.345746,57846.0,57840.0,0.00683875]
[1725243637606,0.345724,57850.0,57842.0,0.16085451]
[1725243637853,0.172873,57846.0,57843.0,0.0852]
[1725243638079,0.172873,57846.0,57843.0,0.09203147]
[1725243639084,0.000817,57855.0,57843.0,0.14456837]
[1725243639317,0.172849,57854.0,57847.0,0.16085451]
[1725243639582,0.172849,57854.0,57843.0,0.00683147]
[1725243639583,0.518635,57844.0,57843.0,0.00683147]
[1725243639855,0.05398393,57850.0,57834.0,0.1033]
[1725243640109,0.172898,57838.0,57834.0,0.1033]
[1725243640360,0.172895,57839.0,57834.0,0.1033]
[1725243640592,0.172898,57838.0,57834.0,0.1033]
[1725243641328,0.345782,57840.0,57834.0,0.1033]
[1725243641329,0.518674,57840.0,57834.0,0.1033]
[1725243641573,0.172894,57839.0,57834.0,0.1033]
[1725243641810,0.345739,57847.0,57835.0,0.16085451]
[1725243642037,0.172876,57845.0,57840.0,0.33374351]
[1725243642279,0.000817,57851.0,57834.0,0.1033]
[1725243642516,0.000817,57851.0,57837.0,0.172898]
[1725243642750,0.000817,57851.0,57837.0,0.16085451]
[1725243643219,0.345735,57848.0,57841.0,0.172886]
[1725243643485,0.172867,57848.0,57844.0,0.0853]
[1725243643741,0.19999637,57848.0,57844.0,0.0853]
[1725243643983,0.172875,57845.0,57844.0,0.0853]
[1725243644201,0.172871,57847.0,57844.0,0.0853]
[1725243644628,0.172873,57846.0,57844.0,0.0853]
[1725243644844,0.08178291,57848.0,57844.0,0.0853]
[1725243644845,0.172875,57845.0,57844.0,0.0853]
[1725243645135,0.172873,57846.0,57844.0,0.0853]
[1725243645774,0.518734,57833.0,57832.0,0.1014]
[1725243646008,0.864557,57833.0,57832.0,0.1014]
[1725243646441,0.518734,57833.0,57832.0,0.1014]
[1725243646670,0.864557,57833.0,57832.0,0.1014]
[1725243646911,0.9855937,57833.0,57832.0,0.1014]
[1725243647990,0.6397707,57833.0,57832.0,0.1014]
[1725243648256,0.172898,57838.0,57834.0,0.172908]
[1725243648487,0.000817,57855.0,57847.0,0.345737]
[1725243648675,0.000817,57855.0,57848.0,0.1036]
[1725243648927,0.000817,57855.0,57849.0,0.0854]
[1725243649143,0.173665,57855.0,57849.0,0.258263]
[1725243649357,0.17285,57854.0,57849.0,0.09858574]
[1725243649799,0.000817,57855.0,57850.0,0.518581]
[1725243650010,0.000817,57855.0,57849.0,0.09858574]
[1725243650011,0.172853,57853.0,57849.0,0.09858574]
[1725243650260,0.5368377,57851.0,57850.0,0.01318028]
[1725243650477,0.865104,57851.0,57850.0,0.01318028]
[1725243650683,0.865104,57851.0,57841.0,0.1786]
[1725243650684,0.172877,57845.0,57841.0,0.1786]
[1725243650891,0.172868,57848.0,57843.0,0.172878]
[1725243651101,0.172868,57848.0,57844.0,0.172877]
[1725243651315,0.172868,57848.0,57844.0,0.18609004]
[1725243651554,0.17287,57847.0,57844.0,0.01321304]
[1725243651960,0.17287,57847.0,57842.0,0.172884]
[1725243652177,0.17287,57847.0,57845.0,0.01320758]
[1725243652413,0.346538,57851.0,57845.0,0.01320758]
[1725243652414,0.868562,57846.0,57845.0,0.01320758]
[1725243652629,0.868562,57846.0,57832.0,0.1032]
[1725243652630,0.172911,57833.0,57832.0,0.1032]
[1725243652871,0.518734,57833.0,57832.0,0.1032]
[1725243653087,0.518734,57833.0,57832.0,0.11647858]
[1725243653525,0.518734,57833.0,57832.0,0.01327858]
[1725243653759,0.345788,57839.0,57831.0,0.0833]
[1725243653984,0.172908,57834.0,57832.0,0.01327858]
[1725243654412,0.172911,57833.0,57832.0,0.01327858]
[1725243654626,0.2593634,57833.0,57832.0,0.01327858]
[1725243655055,0.31501,57836.0,57832.0,0.01327858]
[1725243655225,0.17291,57834.0,57832.0,0.01327858]
[1725243655439,0.172911,57833.0,57832.0,0.01327858]
[1725243655854,0.172907,57835.0,57832.0,0.01327858]
[1725243656257,0.345812,57835.0,57832.0,0.01327858]
[1725243656491,0.31501,57836.0,57832.0,0.01327858]
[1725243656756,0.172909,57834.0,57832.0,0.01327858]
[1725243656969,0.345769,57843.0,57833.0,0.1092]
[1725243657308,0.172895,57839.0,57834.0,0.18617465]
[1725243658326,0.172895,57839.0,57835.0,0.172905]
[1725243658575,0.172895,57839.0,57836.0,0.01325673]
[1725243659008,0.345769,57843.0,57837.0,0.172899]
[1725243659227,0.864497,57837.0,57836.0,0.01325673]
[1725243659651,0.518725,57834.0,57833.0,0.1092]
[1725243660068,0.518725,57834.0,57833.0,0.12247311]
[1725243660548,0.4736,57849.0,57833.0,0.46829511]
[1725243660769,0.172894,57839.0,57834.0,0.172907]
[1725243660981,0.345778,57841.0,57835.0,0.172903]
[1725243660982,0.518668,57841.0,57835.0,0.172903]
[1725243661192,0.172896,57838.0,57835.0,0.01326219]
[1725243661413,0.1729,57837.0,57835.0,0.01326219]
[1725243661624,0.1729,57837.0,57833.0,0.282111]
[1725243661865,0.1729,57837.0,57815.0,0.002]
[1725243661866,0.2668473,57837.0,57836.0,0.01325673]
[1725243662072,0.2668473,57837.0,57797.0,0.0008987]
[1725243662073,1.225443,57830.0,57815.0,0.50540786]
[1725243662297,1.485916,57830.0,57815.0,0.50540786]
[1725243662520,1.559916,57830.0,57815.0,0.50540786]
[1725243662762,1.419943,57830.0,57820.0,0.1058]
[1725243662965,1.414943,57830.0,57820.0,0.1058]
[1725243663436,1.414943,57830.0,57806.0,0.0008987]
[1725243663437,0.0125,57816.0,57806.0,0.0008987]
[1725243663638,0.37325782,57807.0,57806.0,0.0008987]
[1725243663845,1.27599782,57807.0,57806.0,0.0008987]
[1725243664059,1.29899782,57807.0,57806.0,0.0008987]
[1725243664282,1.64497582,57807.0,57806.0,0.0008987]
[1725243664507,1.78581128,57807.0,57806.0,0.0008987]
[1725243664729,1.74066928,57807.0,57806.0,0.0008987]
[1725243664952,1.70483382,57807.0,57806.0,0.0008987]
[1725243665164,1.70903382,57807.0,57806.0,0.0008987]
[1725243665632,1.70403382,57807.0,57806.0,0.0008987]
[1725243666269,1.64289182,57807.0,57806.0,0.0008987]
[1725243666709,1.56554426,57807.0,57806.0,0.0008987]
[1725243668208,1.68915126,57807.0,57806.0,0.0008987]
[1725243668671,1.66195126,57807.0,57806.0,0.0008987]
[1725243668907,1.53834426,57807.0,57806.0,0.0008987]
[1725243670296,2.06428326,57807.0,57806.0,0.0008987]
[1725243670533,2.02928326,57807.0,57806.0,0.0008987]
[1725243670942,1.53834426,57807.0,57806.0,0.0008987]
[1725243671849,0.99209744,57807.0,57806.0,0.0008987]
[1725243672322,0.02715244,57807.0,57806.0,0.1738907]
[1725243672534,0.20014144,57807.0,57806.0,0.0008987]
[1725243672751,0.345951,57812.0,57806.0,0.01266228]
[1725243672981,0.4736,57817.0,57806.0,0.01266228]
[1725243672982,0.172971,57814.0,57811.0,0.1085]
[1725243673200,0.172966,57815.0,57812.0,0.0857]
[1725243673432,0.4736,57817.0,57812.0,0.0857]
[1725243673433,0.172959,57817.0,57813.0,0.17297]
[1725243673900,0.172959,57817.0,57814.0,0.01171985]
[1725243674554,0.172959,57817.0,57812.0,0.258673]
[1725243674773,0.29750268,57819.0,57815.0,0.01171438]
[1725243674982,0.17296,57817.0,57812.0,0.258673]
[1725243675210,0.17296,57817.0,57816.0,0.01170892]
[1725243675437,0.17296,57817.0,57812.0,0.258673]
[1725243675651,0.17296,57817.0,57816.0,0.01170892]
[1725243675867,0.17296,57817.0,57812.0,0.258673]
[1725243676113,0.172948,57821.0,57816.0,0.18466992]
[1725243676336,0.272951,57820.0,57814.0,0.345934]
[1725243676543,0.172954,57819.0,57814.0,0.172968]
[1725243676787,0.34589,57822.0,57815.0,0.18467938]
[1725243677006,0.272948,57821.0,57816.0,0.273661]
[1725243677209,0.1,57821.0,57817.0,0.172959]
[1725243677484,0.1,57821.0,57817.0,0.18460443]
[1725243677698,0.172945,57822.0,57817.0,0.18460443]
[1725243678357,0.445861,57827.0,57817.0,0.01164543]
[1725243678584,0.272931,57827.0,57822.0,0.172942]
[1725243678840,0.272931,57827.0,57823.0,0.1879]
[1725243679074,0.272931,57827.0,57799.0,0.0828]
[1725243679075,0.518967,57807.0,57799.0,0.0828]
[1725243679323,1.210923,57807.0,57799.0,0.0828]
[1725243679526,0.864945,57807.0,57799.0,0.0828]
[1725243680833,1.210923,57807.0,57799.0,0.0828]
[1725243687075,0.864945,57807.0,57799.0,0.0828]
[1725243687868,0.518967,57807.0,57806.0,0.1094987]
[1725243688594,0.518967,57807.0,57806.0,0.12120427]
[1725243688823,0.518967,57807.0,57806.0,0.1094987]
[1725243689295,0.518967,57807.0,57806.0,0.12120427]
[1725243690006,0.12714705,57813.0,57806.0,0.12120427]
[1725243690007,0.02714705,57813.0,57812.0,0.172974]
[1725243690248,0.02714705,57813.0,57812.0,0.702122]
[1725243690522,0.02714705,57813.0,57812.0,1.05974276]
[1725243691016,0.172944,57822.0,57816.0,0.1086]
[1725243691233,0.27426782,57837.0,57818.0,0.1911]
[1725243691234,0.345849,57829.0,57818.0,0.1911]
[1725243691447,0.172936,57825.0,57819.0,0.172952]
[1725243691656,0.172936,57825.0,57819.0,0.1845865]
[1725243692872,0.172936,57825.0,57821.0,0.172947]
[1725243693326,0.172939,57824.0,57822.0,0.01161811]
[1725243693545,0.000818,57825.0,57822.0,0.01161811]
[1725243693773,0.000818,57825.0,57818.0,0.1911]
[1725243694027,0.000818,57825.0,57823.0,0.01161264]
[1725243694028,1.210569,57824.0,57823.0,0.01161264]
[1725243694264,0.51886,57819.0,57818.0,0.1911]
[1725243695861,0.51886,57819.0,57816.0,0.0008998]
[1725243695862,1.210716,57817.0,57816.0,0.0008998]
[1725243696101,1.67246231,57817.0,57816.0,0.0008998]
[1725243696321,1.79546231,57817.0,57816.0,0.0008998]
[1725243696773,2.23056831,57817.0,57816.0,0.0008998]
[1725243697034,2.23256831,57817.0,57816.0,0.0008998]
[1725243697261,2.20508431,57817.0,57816.0,0.0008998]
[1725243697506,2.13568431,57817.0,57816.0,0.0008998]
[1725243698224,2.13368431,57817.0,57816.0,0.0008998]
[1725243698947,1.95162494,57817.0,57816.0,0.0008998]
[1725243699409,1.92447831,57817.0,57816.0,0.0008998]
[1725243700070,1.92947831,57817.0,57816.0,0.0008998]
[1725243701462,1.90606231,57817.0,57816.0,0.0008998]
[1725243702173,1.90806231,57817.0,57816.0,0.0008998]
[1725243702933,1.796835,57817.0,57816.0,0.0008998]
[1725243703723,1.794835,57817.0,57816.0,0.0008998]
[1725243704196,2.152754,57817.0,57816.0,0.0008998]
[1725243704425,2.23007076,57817.0,57816.0,0.0008998]
[1725243704656,2.25584302,57817.0,57816.0,0.0008998]
[1725243704894,2.152754,57817.0,57816.0,0.0008998]
[1725243705615,2.25630746,57817.0,57816.0,0.0008998]
[1725243707238,2.28219615,57817.0,57816.0,0.0008998]
[1725243708239,2.152754,57817.0,57816.0,0.0008998]
[1725243711477,4.04080664,57817.0,57816.0,0.0008998]
[1725243711977,3.97140664,57817.0,57816.0,0.0008998]
[1725243712239,4.1590886,57817.0,57816.0,0.0008998]
[1725243713613,4.0432016,57817.0,57816.0,0.0008998]
[1725243713860,3.93273359,57817.0,57816.0,0.0008998]
[1725243714083,3.18633459,57817.0,57816.0,0.0008998]
[1725243714997,3.71495359,57817.0,57806.0,0.0008987]
[1725243715227,1.73243295,57807.0,57806.0,0.0008987]
[1725243715447,2.26016395,57807.0,57806.0,0.0008987]
[1725243715663,2.38316395,57807.0,57806.0,0.0008987]
[1725243715879,2.66630295,57807.0,57806.0,0.0008987]
[1725243716804,2.65261895,57807.0,57806.0,0.0008987]
[1725243717032,2.56258036,57807.0,57806.0,0.0008987]
[1725243717194,2.43296895,57807.0,57806.0,0.0008987]
[1725243717626,2.43496895,57807.0,57806.0,0.0008987]
[1725243718227,2.46212198,57807.0,57806.0,0.0008987]
[1725243719099,2.64482198,57807.0,57806.0,0.0008987]
[1725243719313,2.46212198,57807.0,57806.0,0.0008987]
[1725243719537,2.43496895,57807.0,57806.0,0.0008987]
[1725243720592,1.98096395,57807.0,57806.0,0.0008987]
[1725243720800,2.08962218,57807.0,57806.0,0.0008987]
[1725243721411,1.98596395,57807.0,57806.0,0.0008987]
[1725243721634,2.08962218,57807.0,57806.0,0.0008987]
[1725243721855,1.98596395,57807.0,57806.0,0.0008987]
[1725243722067,2.08962218,57807.0,57806.0,0.0008987]
[1725243722502,2.07962218,57807.0,57806.0,0.0008987]
[1725243722738,1.36275219,57807.0,57806.0,0.1838987]
[1725243722957,1.33807516,57807.0,57806.0,0.1838987]
[1725243723854,1.310923,57807.0,57806.0,0.1838987]
[1725243724523,1.36275219,57807.0,57806.0,0.1838987]
[1725243724730,1.38575219,57807.0,57806.0,0.1838987]
[1725243725154,1.333923,57807.0,57806.0,0.1838987]
[1725243725601,0.964945,57807.0,57806.0,0.1838987]
[1725243727836,1.310923,57807.0,57806.0,0.1838987]
[1725243728287,0.964945,57807.0,57806.0,0.1838987]
[1725243728500,1.310923,57807.0,57806.0,0.1838987]
[1725243728725,0.964945,57807.0,57806.0,0.1838987]
[1725243728981,1.33807274,57807.0,57806.0,0.1838987]
[1725243729210,0.99209474,57807.0,57806.0,0.1838987]
[1725243729637,1.33807274,57807.0,57806.0,0.1838987]
[1725243733679,0.30013874,57807.0,57806.0,0.1838987]
[1725243733950,0.05183752,57808.0,57807.0,0.108]
[1725243733951,0.172989,57808.0,57807.0,0.108]
[1725243734190,0.518961,57808.0,57807.0,0.108]
[1725243734422,0.518961,57808.0,57807.0,0.1197001]
[1725243734640,0.518961,57808.0,57807.0,0.2009001]
[1725243735081,0.05183752,57817.0,57810.0,0.1825]
[1725243735331,0.000818,57819.0,57814.0,0.1825]
[1725243735560,0.000818,57819.0,57816.0,0.183]
[1725243735790,0.000818,57819.0,57818.0,0.183]
[1725243736225,0.000818,57819.0,57818.0,0.19463997]
[1725243738244,0.000818,57819.0,57818.0,0.54055297]
[1725243738679,0.000818,57819.0,57818.0,0.71350897]
[1725243739126,0.000818,57819.0,57818.0,1.05942197]
[1725243742069,0.02795798,57819.0,57818.0,1.05942197]
[1725243742744,0.000818,57819.0,57818.0,1.05942197]
[1725243743696,0.000818,57819.0,57818.0,0.71350897]
[1725243744618,0.000818,57819.0,57818.0,0.19463997]
[1725243745521,0.173771,57819.0,57818.0,0.19463997]
[1725243745740,0.9175511,57819.0,57818.0,0.19463997]
[1725243745963,0.865585,57819.0,57818.0,0.19463997]
[1725243746189,0.865585,57819.0,57818.0,0.183]
[1725243749783,0.000818,57819.0,57818.0,0.183]
[1725243750222,0.000818,57819.0,57818.0,0.19463997]
[1725243750898,0.000818,57819.0,57818.0,0.36759597]
[1725243751126,0.000818,57819.0,57818.0,0.19463997]
[1725243752328,0.000818,57819.0,57818.0,0.36759597]
[1725243756010,0.000818,57819.0,57818.0,0.71350897]
[1725243756227,0.000818,57819.0,57818.0,0.36759597]
[1725243756391,0.000818,57819.0,57818.0,0.71350897]
[1725243757042,0.000818,57819.0,57818.0,1.40533497]
[1725243758689,0.000818,57825.0,57824.0,0.864692]
[1725243758895,0.000818,57825.0,57824.0,1.20682395]
[1725243759233,0.000818,57825.0,57824.0,0.87255413]
[1725243759681,0.000818,57825.0,57824.0,0.36614518]
[1725243760124,0.000818,57825.0,57824.0,0.71202218]
[1725243761737,0.000818,57825.0,57824.0,0.36614518]
[1725243762158,0.000818,57825.0,57824.0,0.71202218]
[1725243762573,0.000818,57825.0,57824.0,0.19320718]
[1725243763060,0.173753,57825.0,57824.0,0.19320718]
[1725243763271,0.173753,57825.0,57824.0,0.01160718]
[1725243763272,1.55888515,57825.0,57824.0,0.01160718]
[1725243763501,2.00475615,57825.0,57824.0,0.01160718]
[1725243763750,2.00475615,57825.0,57816.0,0.0008998]
[1725243763751,0.869797,57817.0,57816.0,0.0008998]
[1725243763980,2.14166395,57817.0,57816.0,0.0008998]
[1725243764195,2.24436395,57817.0,57816.0,0.0008998]
[1725243764414,2.29608481,57817.0,57816.0,0.0008998]
[1725243765111,2.2960998,57817.0,57816.0,0.0008998]
[1725243765333,2.27903115,57817.0,57816.0,0.0008998]
[1725243765997,2.33077598,57817.0,57816.0,0.0008998]
[1725243766672,2.27903115,57817.0,57816.0,0.0008998]
[1725243768722,2.35663493,57817.0,57816.0,0.0008998]
[1725243769379,2.36663493,57817.0,57816.0,0.0008998]
[1725243769846,2.3937829,57817.0,57816.0,0.0008998]
[1725243771182,2.08174759,57817.0,57816.0,0.0008998]
[1725243771427,2.40182128,57817.0,57816.0,0.0008998]
[1725243771648,2.35006281,57817.0,57816.0,0.0008998]
[1725243771863,2.401824,57817.0,57816.0,0.0008998]
[1725243772090,3.71682989,57817.0,57816.0,0.0008998]
[1725243774831,2.4593599,57817.0,57816.0,0.0008998]
[1725243775043,2.39759574,57817.0,57816.0,0.0008998]
[1725243777045,2.05167674,57817.0,57816.0,0.0008998]
[1725243778767,1.35983874,57817.0,57816.0,0.0008998]
[1725243779690,0.33899066,57817.0,57816.0,0.0008998]
[1725243780149,0.33899066,57817.0,57816.0,0.0125507]
[1725243780414,0.33899066,57817.0,57816.0,0.0008998]
[1725243780628,0.33899066,57817.0,57816.0,0.0125507]
[1725243780853,0.33899066,57817.0,57816.0,0.0008998]
[1725243781251,0.68490966,57817.0,57816.0,0.0125507]
[1725243781427,0.68490966,57817.0,57816.0,0.0008998]
[1725243781609,0.33899066,57817.0,57816.0,0.0008998]
[1725243781846,0.33899066,57817.0,57816.0,0.0125507]
[1725243781847,0.68490966,57817.0,57816.0,0.0125507]
[1725243782080,1.39974766,57817.0,57816.0,0.0125507]
[1725243782502,1.39974766,57817.0,57816.0,0.0008998]
[1725243783109,1.90754666,57817.0,57816.0,0.0008998]
[1725243783381,1.92473082,57817.0,57816.0,0.0008998]
[1725243783593,1.79743082,57817.0,57816.0,0.0008998]
[1725243783807,1.88376666,57817.0,57816.0,0.0008998]
[1725243784280,1.39974766,57817.0,57816.0,0.0008998]
[1725243786480,1.05382866,57817.0,57816.0,0.0008998]
[1725243786694,0.26199066,57817.0,57816.0,0.1904998]
[1725243787125,0.60790966,57817.0,57816.0,0.2021507]
[1725243787346,0.95382866,57817.0,57816.0,0.1904998]
[1725243789219,0.95464666,57817.0,57816.0,0.1904998]
[1725243789494,0.95464666,57817.0,57816.0,0.7143868]
[1725243789495,0.02796597,57817.0,57816.0,0.7143868]
[1725243789744,0.02796597,57817.0,57816.0,1.4062368]
[1725243789997,0.000818,57817.0,57816.0,1.4178877]
[1725243790242,0.000818,57817.0,57816.0,1.57572967]
[1725243790680,0.000818,57817.0,57816.0,1.0719627]
[1725243791129,0.865615,57817.0,57816.0,0.2021507]
[1725243791338,1.02614695,57817.0,57816.0,0.0125507]
[1725243791555,1.12884345,57817.0,57816.0,0.0125507]
[1725243791789,1.15184345,57817.0,57816.0,0.0008998]
[1725243792650,1.04914695,57817.0,57816.0,0.0008998]
[1725243793334,1.14914695,57817.0,57816.0,0.0008998]
[1725243793546,0.988615,57817.0,57816.0,0.0008998]
[1725243794438,1.67719395,57817.0,57816.0,0.0008998]
[1725243794666,2.69804203,57817.0,57816.0,0.0008998]
[1725243796650,3.04396103,57817.0,57816.0,0.0008998]
[1725243796874,3.15754714,57817.0,57816.0,0.0008998]
[1725243797096,3.05396103,57817.0,57816.0,0.0008998]
[1725243797530,3.18344367,57817.0,57816.0,0.0008998]
[1725243797962,3.05396103,57817.0,57816.0,0.0008998]
[1725243798639,3.05596103,57817.0,57816.0,0.0008998]
[1725243800423,3.05596103,57817.0,57802.0,0.05396212]
[1725243800424,0.865005,57803.0,57802.0,0.05396212]
[1725243800873,1.211007,57803.0,57802.0,0.05396212]
[1725243801114,1.211007,57803.0,57796.0,0.116487]
[1725243801115,0.519048,57798.0,57796.0,0.116487]
[1725243801345,0.86508,57798.0,57796.0,0.116487]
[1725243801582,0.88808,57798.0,57796.0,0.116487]
[1725243801804,1.234112,57798.0,57796.0,0.116487]
[1725243802701,1.234112,57798.0,57796.0,0.008987]
[1725243804284,1.334112,57798.0,57796.0,0.008987]
[1725243804739,1.557668,57798.0,57796.0,0.008987]
[1725243805373,1.334112,57798.0,57796.0,0.008987]
[1725243805625,1.871989,57798.0,57796.0,0.008987]
[1725243806089,1.743644,57798.0,57796.0,0.008987]
[1725243806298,1.440262,57798.0,57796.0,0.008987]
[1725243806513,2.46111008,57798.0,57796.0,0.008987]
[1725243808756,2.51290869,57798.0,57796.0,0.008987]
[1725243809653,2.85894069,57798.0,57796.0,0.008987]
[1725243809846,2.51290869,57798.0,57796.0,0.008987]
[1725243810106,2.51490869,57798.0,57796.0,0.008987]
[1725243810780,2.86094069,57798.0,57796.0,0.008987]
[1725243810996,2.86096284,57798.0,57796.0,0.008987]
[1725243812581,2.46311008,57798.0,57796.0,0.008987]
[1725243813460,2.46111008,57798.0,57796.0,0.008987]
[1725243813650,2.35496008,57798.0,57796.0,0.008987]
[1725243818451,1.334112,57798.0,57796.0,0.008987]
[1725243823826,0.02715162,57803.0,57798.0,0.196]
[1725243824055,0.02715162,57803.0,57800.0,0.0864]
[1725243824274,0.02715162,57803.0,57801.0,0.1096]
[1725243824495,0.02715162,57803.0,57802.0,0.201]
[1725243824961,0.02715162,57803.0,57802.0,0.21138817]
[1725243825178,0.02715162,57803.0,57802.0,0.38439217]
[1725243825826,0.02715162,57803.0,57802.0,0.21138817]
[1725243826922,0.02715162,57803.0,57802.0,0.38439217]
[1725243827140,0.02715162,57803.0,57802.0,0.73040017]
[1725243827359,0.02715162,57803.0,57802.0,1.07640817]
[1725243828470,0.02715162,57803.0,57802.0,1.42241617]
[1725243828910,0.000818,57805.0,57804.0,0.86999]
[1725243829147,0.000818,57805.0,57804.0,1.21492195]
[1725243829371,0.000818,57805.0,57804.0,1.22485919]
[1725243829617,0.000818,57805.0,57804.0,1.57085519]
[1725243830085,0.000818,57805.0,57804.0,1.72794071]
[1725243830311,0.02714648,57815.0,57814.0,0.86883595]
[1725243830537,0.02714648,57815.0,57814.0,1.21477195]
[1725243830761,0.02714648,57815.0,57814.0,1.22465451]
[1725243836098,0.02714648,57815.0,57814.0,1.57059051]
[1725243836812,0.02714648,57815.0,57814.0,1.22465451]
[1725243837023,0.02714648,57815.0,57814.0,1.38171386]
[1725243837265,0.02714648,57815.0,57814.0,1.72764986]
[1725243837500,0.02714648,57815.0,57814.0,1.57059051]
[1725243838361,0.02796448,57815.0,57814.0,1.57059051]
[1725243839014,0.02796448,57815.0,57814.0,1.57259051]
[1725243840065,0.000818,57815.0,57814.0,1.57259051]
[1725243840899,0.000818,57815.0,57814.0,1.22465451]
[1725243841352,0.000818,57815.0,57814.0,1.57059051]
[1725243842908,0.345847,57829.0,57818.0,0.345911]
[1725243843142,0.172928,57828.0,57824.0,0.1064]
[1725243843597,0.345847,57829.0,57824.0,0.1064]
[1725243843598,0.172929,57827.0,57825.0,0.00982245]
[1725243843841,0.172929,57827.0,57826.0,0.0794]
[1725243844296,0.172929,57827.0,57826.0,0.08921698]
[1725243845177,0.172928,57828.0,57826.0,0.08921698]
[1725243845397,0.1,57834.0,57826.0,0.08921698]
[1725243845637,0.172928,57828.0,57826.0,0.08921698]
[1725243845848,0.345848,57829.0,57826.0,0.08921698]
[1725243845849,0.172929,57827.0,57826.0,0.08921698]
[1725243846971,0.172929,57827.0,57826.0,0.00981698]
[1725243846972,0.96382229,57827.0,57826.0,0.00981698]
[1725243847191,1.46408529,57827.0,57826.0,0.00981698]
[1725243847415,0.172959,57817.0,57816.0,0.005]
[1725243847633,0.518878,57817.0,57816.0,0.005]
[1725243847918,0.172959,57817.0,57816.0,0.01444663]
[1725243848145,0.172954,57819.0,57816.0,0.01444663]
[1725243848579,0.02714169,57821.0,57820.0,0.005]
[1725243848803,0.20008869,57821.0,57820.0,0.1115]
[1725243849019,0.172947,57821.0,57820.0,0.12092477]
[1725243849263,0.172944,57822.0,57820.0,0.12092477]
[1725243849690,0.172947,57821.0,57820.0,0.11592477]
[1725243850730,0.172947,57821.0,57820.0,0.00942477]
[1725243850731,0.518842,57821.0,57820.0,0.00942477]
[1725243851145,0.172959,57817.0,57816.0,0.1073]
[1725243851747,0.518878,57817.0,57816.0,0.1073]
[1725243852180,0.345916,57818.0,57816.0,0.1073]
[1725243853222,0.37305788,57818.0,57816.0,0.1073]
[1725243853441,0.864797,57817.0,57816.0,0.1023]
[1725243854042,0.518887,57816.0,57815.0,0.0867]
[1725243854671,0.518887,57816.0,57815.0,0.0817]
[1725243854882,0.172965,57815.0,57814.0,0.0008998]
[1725243855492,0.518895,57815.0,57814.0,0.0008998]
[1725243857327,0.864825,57815.0,57814.0,0.0008998]
[1725243858005,0.89196939,57815.0,57814.0,0.0008998]
[1725243858240,0.89196939,57815.0,57814.0,0.0058998]
[1725243858461,0.864825,57815.0,57814.0,0.0058998]
[1725243858666,0.864825,57815.0,57814.0,0.0008998]
[1725243859282,0.864825,57815.0,57814.0,0.0058998]
[1725243861374,0.864825,57815.0,57814.0,0.01535736]
[1725243861546,0.864825,57815.0,57814.0,0.0058998]
[1725243861760,0.864825,57815.0,57814.0,0.01535736]
[1725243861901,0.172965,57815.0,57814.0,0.0058998]
[1725243862111,0.172948,57821.0,57820.0,0.005]
[1725243862489,0.02714423,57822.0,57820.0,0.005]
[1725243862698,0.172947,57821.0,57820.0,0.01442477]
[1725243862905,0.172947,57821.0,57820.0,0.005]
[1725243863186,0.272947,57821.0,57820.0,0.01442477]
[1725243863409,0.02714423,57822.0,57821.0,0.955437]
[1725243863611,0.000818,57828.0,57827.0,1.054447]
[1725243863814,0.000818,57828.0,57827.0,1.21997895]
[1725243864030,0.000818,57828.0,57827.0,1.22936547]
[1725243865325,0.173744,57828.0,57827.0,0.20418652]
[1725243865568,0.86545,57828.0,57827.0,0.00938652]
[1725243865783,3.11469495,57828.0,57827.0,0.00938652]
[1725243866008,0.864825,57815.0,57814.0,0.0008998]
[1725243866231,0.887825,57815.0,57814.0,0.0008998]
[1725243866470,0.887825,57815.0,57814.0,0.01035736]
[1725243866679,0.887825,57815.0,57814.0,0.0008998]
[1725243866932,1.0111989,57815.0,57814.0,0.0008998]
[1725243867552,0.91497056,57815.0,57814.0,0.0008998]
[1725243873623,0.54604056,57815.0,57814.0,0.0008998]
[1725243874242,0.20011056,57815.0,57814.0,0.0008998]
[1725243874880,0.89197056,57815.0,57814.0,0.0008998]
[1725243875312,0.54604056,57815.0,57814.0,0.0008998]
[1725243877967,0.20011056,57815.0,57814.0,0.0008998]
[1725243878196,0.20011056,57815.0,57814.0,0.01035736]
[1725243878422,0.20011056,57815.0,57814.0,0.1003998]
[1725243878688,0.20011056,57815.0,57814.0,0.10985736]
[1725243878889,0.20011056,57815.0,57814.0,0.19205736]
[1725243880585,0.02714556,57815.0,57814.0,0.19205736]
[1725243880816,0.02714556,57815.0,57814.0,0.36502536]
[1725243881315,0.02714556,57815.0,57814.0,0.19205736]
[1725243882394,0.02714556,57815.0,57814.0,0.37002536]
[1725243882833,0.02714556,57815.0,57814.0,1.06189736]
[1725243883056,0.000818,57817.0,57816.0,0.523887]
[1725243883271,0.000818,57817.0,57816.0,0.630587]
[1725243883486,0.000818,57817.0,57816.0,0.72153363]
[1725243883709,0.000818,57817.0,57816.0,1.06745863]
[1725243883919,0.000818,57817.0,57816.0,1.22494127]
[1725243884139,0.000818,57817.0,57816.0,1.57086627]
[1725243885949,0.000818,57817.0,57816.0,1.41338363]
[1725243886452,0.000818,57817.0,57816.0,1.06745863]
[1725243887424,0.173777,57817.0,57816.0,0.19764663]
[1725243887661,0.173777,57817.0,57816.0,0.00944663]
[1725243887898,0.20091849,57817.0,57816.0,0.00944663]
[1725243888134,0.20091849,57817.0,57814.0,0.0058998]
[1725243888135,0.172963,57816.0,57814.0,0.0058998]
[1725243889575,0.20092149,57817.0,57814.0,0.0058998]
[1725243889712,0.172963,57816.0,57814.0,0.0058998]
[1725243894295,0.172963,57816.0,57815.0,0.0094521]
[1725243894705,0.02795949,57817.0,57816.0,0.366962]
[1725243894963,0.02795949,57817.0,57816.0,0.37640863]
[1725243895166,0.02795949,57817.0,57816.0,0.72233363]
[1725243895167,0.000818,57817.0,57816.0,0.72233363]
[1725243895586,0.000818,57817.0,57816.0,0.84530427]
[1725243895796,0.000818,57817.0,57816.0,0.72233363]
[1725243896270,0.000818,57817.0,57816.0,1.06825863]
[1725243897586,0.000818,57817.0,57816.0,1.41418363]
[1725243906103,0.000818,57817.0,57816.0,1.41618363]
[1725243910108,0.000818,57817.0,57816.0,1.76300843]